bitfinex/quotes_BTCUSD_20240731
["timestamp","ask_amount","ask_price","bid_price","bid_amount"]
[1722428552362,0.155,66225.0,66224.0,0.15533193]
[1722428552796,0.004,66225.0,66224.0,0.15533193]
[1722428552993,0.004,66225.0,66224.0,0.52927226]
[1722428553475,0.155,66225.0,66224.0,0.52927226]
[1722428553631,0.457,66225.0,66224.0,0.15533193]
[1722428553834,0.45783,66225.0,66224.0,0.15533193]
[1722428554495,0.50298734,66225.0,66224.0,0.15533193]
[1722428554700,0.45783,66225.0,66224.0,0.15533193]
[1722428555388,0.04998734,66225.0,66224.0,0.15533193]
[1722428555589,0.04998734,66225.0,66224.0,0.60833893]
[1722428555590,0.00483,66225.0,66224.0,0.60833893]
[1722428555866,0.00483,66225.0,66224.0,0.75443893]
[1722428556076,0.00483,66225.0,66224.0,1.05644393]
[1722428556746,0.00183,66225.0,66224.0,1.05644393]
[1722428557160,0.00183,66225.0,66224.0,1.05744393]
[1722428557374,0.00083,66225.0,66224.0,1.05644393]
[1722428557579,0.00183,66225.0,66224.0,1.05744393]
[1722428557817,0.00183,66225.0,66224.0,1.06444393]
[1722428558020,0.00183,66225.0,66224.0,0.76243893]
[1722428558195,0.00183,66225.0,66224.0,0.75543893]
[1722428558401,0.00183,66225.0,66224.0,1.05744393]
[1722428558735,0.00183,66225.0,66224.0,1.06844393]
[1722428560965,0.00183,66225.0,66224.0,0.76643893]
[1722428561337,0.00183,66225.0,66224.0,0.31343193]
[1722428561562,0.15283,66225.0,66224.0,0.16733193]
[1722428561779,0.45483,66225.0,66224.0,0.16733193]
[1722428561940,1.05883,66225.0,66224.0,0.16263304]
[1722428562648,1.10395473,66225.0,66224.0,0.16263304]
[1722428562889,1.10395473,66225.0,66224.0,0.16163304]
[1722428562890,1.10295391,66225.0,66224.0,0.16163304]
[1722428563333,1.10295391,66225.0,66224.0,0.15163304]
[1722428563519,0.75583,66225.0,66224.0,0.15163304]
[1722428563723,0.45383,66225.0,66224.0,0.15563304]
[1722428564044,0.45383,66225.0,66224.0,0.16031328]
[1722428564270,0.75583,66225.0,66224.0,0.16031328]
[1722428564476,0.75583,66225.0,66224.0,0.15563304]
[1722428566086,0.45383,66225.0,66224.0,0.15563304]
[1722428566507,0.45383,66225.0,66224.0,0.16031328]
[1722428566742,0.15183,66225.0,66224.0,0.16031328]
[1722428566944,0.15183,66225.0,66224.0,0.15563304]
[1722428567157,0.00083,66225.0,66224.0,0.15563304]
[1722428567361,0.00083,66225.0,66224.0,0.16031328]
[1722428568288,0.15183,66225.0,66224.0,0.16031328]
[1722428572450,0.00083,66225.0,66224.0,0.16031328]
[1722428573205,0.15183,66225.0,66224.0,0.16031328]
[1722428574508,0.45383,66225.0,66224.0,0.16031328]
[1722428574805,0.45383,66225.0,66224.0,0.15563304]
[1722428575201,0.45383,66225.0,66224.0,0.16031739]
[1722428575967,0.15183,66225.0,66224.0,0.16031739]
[1722428578630,0.15302294,66225.0,66224.0,0.16031739]
[1722428578893,0.45502294,66225.0,66224.0,0.16031739]
[1722428579066,0.45383,66225.0,66224.0,0.16031739]
[1722428579373,0.45383,66225.0,66224.0,0.15563304]
[1722428579566,0.45383,66225.0,66224.0,0.16031739]
[1722428580458,0.49896517,66225.0,66224.0,0.16031739]
[1722428580854,0.49896517,66225.0,66224.0,0.15563304]
[1722428581260,0.52153276,66225.0,66224.0,0.15563304]
[1722428581459,0.52153276,66225.0,66224.0,0.16031739]
[1722428581662,0.82353276,66225.0,66224.0,0.16031739]
[1722428581873,0.84619093,66225.0,66224.0,0.16031739]
[1722428582076,0.75583,66225.0,66224.0,0.15563304]
[1722428582480,1.05783,66225.0,66224.0,0.15563304]
[1722428585290,0.75583,66225.0,66224.0,0.15563304]
[1722428593755,1.05783,66225.0,66224.0,0.15563304]
[1722428593967,0.9088261,66225.0,66224.0,0.15563304]
[1722428594168,0.9879261,66225.0,66224.0,0.15563304]
[1722428594369,0.89543,66225.0,66224.0,0.15563304]
[1722428594574,1.19743,66225.0,66224.0,0.15563304]
[1722428596595,0.81633,66225.0,66224.0,0.15563304]
[1722428596966,1.27129505,66225.0,66224.0,0.15563304]
[1722428597612,1.2712877,66225.0,66224.0,0.15563304]
[1722428597988,1.11833,66225.0,66224.0,0.15563304]
[1722428599981,1.27127055,66225.0,66224.0,0.15563304]
[1722428600434,1.11833,66225.0,66224.0,0.15563304]
[1722428600772,1.27126306,66225.0,66224.0,0.15563304]
[1722428600952,0.81633,66225.0,66224.0,0.15563304]
[1722428603612,0.51433,66225.0,66224.0,0.15563304]
[1722428603876,0.51547324,66225.0,66224.0,0.15563304]
[1722428604558,0.51433,66225.0,66224.0,0.15563304]
[1722428604963,0.51546247,66225.0,66224.0,0.15563304]
[1722428605186,0.51433,66225.0,66224.0,0.15563304]
[1722428605741,0.51549017,66225.0,66224.0,0.15563304]
[1722428606316,0.51549709,66225.0,66224.0,0.15563304]
[1722428606518,0.66847018,66225.0,66224.0,0.15563304]
[1722428606923,0.66730309,66225.0,66224.0,0.15563304]
[1722428607785,0.81633,66225.0,66224.0,0.15563304]
[1722428607945,0.51433,66225.0,66224.0,0.15563304]
[1722428608350,0.36533724,66225.0,66224.0,0.15563304]
[1722428608609,0.15383724,66225.0,66224.0,0.15563304]
[1722428608784,0.15183,66225.0,66224.0,0.15563304]
[1722428608941,0.15183,66225.0,66224.0,0.16032838]
[1722428610202,0.45383,66225.0,66224.0,0.16032838]
[1722428611074,0.00083,66225.0,66224.0,0.16032838]
[1722428611236,0.00083,66225.0,66224.0,0.81976105]
[1722428611434,0.00083,66225.0,66224.0,1.48667105]
[1722428611607,0.06881509,66225.0,66224.0,1.48365122]
[1722428611810,0.06881509,66225.0,66224.0,1.18164622]
[1722428612411,0.00083,66225.0,66224.0,1.17764622]
[1722428612613,0.00083,66225.0,66224.0,1.05714038]
[1722428612787,0.00083,66225.0,66224.0,1.48463731]
[1722428613293,0.04613399,66225.0,66224.0,1.48463731]
[1722428613545,0.04613399,66225.0,66224.0,1.18263231]
[1722428613768,0.06879885,66225.0,66224.0,1.18263231]
[1722428613967,0.06879885,66225.0,66224.0,1.18163231]
[1722428614170,0.00083,66225.0,66224.0,1.18563231]
[1722428614583,0.06879885,66225.0,66224.0,1.18563231]
[1722428614786,0.04612883,66225.0,66224.0,1.18563231]
[1722428615016,0.00083,66225.0,66224.0,1.18563231]
[1722428615213,0.04612413,66225.0,66224.0,1.18563231]
[1722428615690,0.00083,66225.0,66224.0,1.18563231]
[1722428616013,0.0461233,66225.0,66224.0,1.18563318]
[1722428616327,0.00083,66225.0,66224.0,1.19481935]
[1722428616803,0.0461233,66225.0,66224.0,1.49682435]
[1722428616999,0.00083,66225.0,66224.0,1.59682435]
[1722428618340,0.00083,66225.0,66224.0,1.60682435]
[1722428618552,0.00083,66225.0,66224.0,1.59682435]
[1722428619316,0.00083,66225.0,66224.0,1.47133155]
[1722428619516,0.00083,66225.0,66224.0,1.59681521]
[1722428620995,0.00083,66225.0,66224.0,0.62790021]
[1722428621166,0.00083,66225.0,66224.0,0.37689821]
[1722428621367,0.00083,66225.0,66224.0,0.69523538]
[1722428621368,0.04609713,66225.0,66224.0,0.69523538]
[1722428621576,0.04609713,66225.0,66224.0,0.39323038]
[1722428621738,0.04609713,66225.0,66224.0,0.16432838]
[1722428621739,0.0023842,66225.0,66224.0,0.16432838]
[1722428621943,0.60721846,66225.0,66224.0,0.16432838]
[1722428622261,0.9529314,66225.0,66224.0,0.15963304]
[1722428622481,0.81713,66225.0,66224.0,0.15963304]
[1722428622879,0.95291719,66225.0,66224.0,0.15963304]
[1722428623076,0.81713,66225.0,66224.0,0.15963304]
[1722428623479,0.95291582,66225.0,66224.0,0.15963304]
[1722428624166,0.95291582,66225.0,66224.0,0.15563304]
[1722428624299,0.95291416,66225.0,66224.0,0.15863304]
[1722428624878,0.95291416,66225.0,66224.0,0.15363304]
[1722428625298,0.95291416,66225.0,66224.0,0.15763304]
[1722428625556,0.81713,66225.0,66224.0,0.15763304]
[1722428626596,0.95291118,66225.0,66224.0,0.15763304]
[1722428627509,0.65091118,66225.0,66224.0,0.15763304]
[1722428627788,0.19791118,66225.0,66224.0,0.15763304]
[1722428628021,0.06213,66225.0,66224.0,0.15763304]
[1722428628292,0.21313,66225.0,66224.0,0.15763304]
[1722428628525,0.51513,66225.0,66224.0,0.15763304]
[1722428629288,0.5166842,66225.0,66224.0,0.15763304]
[1722428629506,0.2146842,66225.0,66224.0,0.15763304]
[1722428629704,0.65090787,66225.0,66224.0,0.15763304]
[1722428629935,0.51513,66225.0,66224.0,0.15763304]
[1722428630149,0.95290787,66225.0,66224.0,0.15763304]
[1722428630395,0.81713,66225.0,66224.0,0.15763304]
[1722428630544,0.95291063,66225.0,66224.0,0.15763304]
[1722428631303,0.95290831,66225.0,66224.0,0.15763304]
[1722428632043,0.81713,66225.0,66224.0,0.15763304]
[1722428632220,0.95290772,66225.0,66224.0,0.15763304]
[1722428633243,0.65090772,66225.0,66224.0,0.15763304]
[1722428633503,0.58960772,66225.0,66224.0,0.15763304]
[1722428635551,0.58960529,66225.0,66224.0,0.15763304]
[1722428637209,0.89160529,66225.0,66224.0,0.15763304]
[1722428638576,0.89160382,66225.0,66224.0,0.15763304]
[1722428639894,0.58960382,66225.0,66224.0,0.15763304]
[1722428641541,0.89160382,66225.0,66224.0,0.15763304]
[1722428641945,0.75583,66225.0,66224.0,0.15763304]
[1722428642141,0.8916085,66225.0,66224.0,0.15763304]
[1722428645107,0.75583,66225.0,66224.0,0.15763304]
[1722428650894,1.05783,66225.0,66224.0,0.15763304]
[1722428654583,1.35983,66225.0,66224.0,0.007]
[1722428654804,1.42263,66225.0,66224.0,0.007]
[1722428655019,1.50153,66225.0,66224.0,0.007]
[1722428655228,1.51153,66225.0,66224.0,0.007]
[1722428655457,1.63113963,66225.0,66224.0,0.007]
[1722428655687,1.9886934,66225.0,66224.0,0.00419808]
[1722428655908,1.9886934,66225.0,66209.0,0.000913]
[1722428655909,1.057241,66210.0,66209.0,0.000913]
[1722428656115,1.59171,66210.0,66209.0,0.37485333]
[1722428656320,1.70112432,66210.0,66209.0,0.37485333]
[1722428656532,1.71112432,66210.0,66209.0,0.37485333]
[1722428657051,1.71112432,66210.0,66209.0,0.37585333]
[1722428657052,2.05619332,66210.0,66209.0,0.37585333]
[1722428657252,2.18669332,66210.0,66209.0,0.001913]
[1722428657694,2.18669332,66210.0,66209.0,0.000913]
[1722428657853,2.18669332,66210.0,66209.0,0.001913]
[1722428658340,2.19769332,66210.0,66209.0,0.001913]
[1722428658718,2.18669332,66210.0,66209.0,0.001913]
[1722428658967,2.20069332,66210.0,66209.0,0.001913]
[1722428659380,2.20069332,66210.0,66209.0,0.000913]
[1722428659515,2.20769332,66210.0,66209.0,0.001913]
[1722428661644,2.20769244,66210.0,66209.0,0.001913]
[1722428664358,2.35994168,66210.0,66209.0,0.001913]
[1722428664703,2.35052824,66210.0,66209.0,0.001913]
[1722428664901,2.359942,66210.0,66209.0,0.001913]
[1722428665606,2.35994328,66210.0,66209.0,0.001913]
[1722428666224,2.36876981,66210.0,66209.0,0.001913]
[1722428666478,2.21651929,66210.0,66209.0,0.001913]
[1722428666915,2.36721361,66210.0,66209.0,0.001913]
[1722428667335,2.51946413,66210.0,66209.0,0.001913]
[1722428667487,2.21651929,66210.0,66209.0,0.001913]
[1722428667912,2.20710553,66210.0,66209.0,0.001913]
[1722428668111,2.21651971,66210.0,66209.0,0.001913]
[1722428668476,2.20710553,66210.0,66209.0,0.001913]
[1722428669309,2.25847784,66210.0,66209.0,0.001913]
[1722428669513,2.2165196,66210.0,66209.0,0.001913]
[1722428669900,2.21651952,66210.0,66209.0,0.001913]
[1722428670311,2.20710553,66210.0,66209.0,0.001913]
[1722428672687,2.21651897,66210.0,66209.0,0.001913]
[1722428673609,2.51858797,66210.0,66209.0,0.001913]
[1722428673835,2.97207813,66210.0,66209.0,0.001913]
[1722428674050,2.81991533,66210.0,66209.0,0.001913]
[1722428674497,2.8199137,66210.0,66209.0,0.001913]
[1722428676891,2.9791137,66210.0,66209.0,1e-06]
[1722428677016,1.812576,66198.0,66197.0,0.000913]
[1722428677221,1.999576,66198.0,66197.0,0.000913]
[1722428678098,2.05509057,66198.0,66197.0,0.000913]
[1722428678301,2.50474288,66198.0,66197.0,0.000913]
[1722428678509,2.50474288,66198.0,66197.0,0.100913]
[1722428679273,2.63534288,66198.0,66197.0,0.100913]
[1722428679451,2.64934288,66198.0,66197.0,0.100913]
[1722428679819,2.64934288,66198.0,66185.0,0.37394033]
[1722428679820,2.294632,66197.0,66196.0,1e-06]
[1722428680040,2.78803137,66197.0,66196.0,1e-06]
[1722428680249,2.78803137,66197.0,66193.0,1e-06]
[1722428680250,1.087497,66194.0,66193.0,1e-06]
[1722428680450,0.944577,66192.0,66191.0,1e-06]
[1722428680672,2.62462228,66192.0,66191.0,1e-06]
[1722428680877,2.79182488,66192.0,66191.0,1e-06]
[1722428681075,2.94039769,66192.0,66191.0,1e-06]
[1722428681302,3.07534364,66192.0,66191.0,1e-06]
[1722428681505,2.94039769,66192.0,66191.0,1e-06]
[1722428682148,2.027733,66180.0,66179.0,0.00935]
[1722428682353,2.150733,66180.0,66179.0,0.00935]
[1722428682773,2.472939,66180.0,66179.0,0.00935]
[1722428683006,2.48234735,66180.0,66179.0,0.00935]
[1722428683397,2.70038341,66180.0,66179.0,0.00935]
[1722428683585,2.72138341,66180.0,66179.0,0.00935]
[1722428683790,2.74388277,66180.0,66179.0,0.00935]
[1722428683945,2.80467471,66180.0,66179.0,0.00935]
[1722428684142,2.79526636,66180.0,66179.0,0.00935]
[1722428684363,2.79526636,66180.0,66160.0,0.078]
[1722428684364,0.03,66172.0,66160.0,0.078]
[1722428684562,2.572479,66172.0,66160.0,0.44444115]
[1722428684765,2.572479,66172.0,66150.0,0.0799]
[1722428684766,0.453501,66152.0,66150.0,0.0799]
[1722428684980,1.058169,66152.0,66150.0,0.0799]
[1722428685191,0.855835,66152.0,66151.0,0.0053986]
[1722428685392,0.553501,66152.0,66151.0,0.21244716]
[1722428685599,0.553501,66152.0,66151.0,0.21734576]
[1722428685818,0.855835,66152.0,66151.0,0.21734576]
[1722428686172,1.158169,66152.0,66151.0,0.21734576]
[1722428686570,1.172169,66152.0,66151.0,0.21734576]
[1722428686793,0.879835,66152.0,66151.0,0.21734576]
[1722428687000,0.563501,66152.0,66151.0,0.21244716]
[1722428687210,0.574501,66152.0,66151.0,0.21244716]
[1722428687412,0.876835,66152.0,66151.0,0.21734576]
[1722428687968,0.866835,66152.0,66151.0,0.21734576]
[1722428688167,0.855835,66152.0,66151.0,0.21734576]
[1722428688370,0.865835,66152.0,66151.0,0.1419986]
[1722428688749,0.855835,66152.0,66151.0,0.1419986]
[1722428689174,1.167169,66152.0,66151.0,0.1419986]
[1722428689613,1.171169,66152.0,66151.0,0.1371]
[1722428689823,1.158169,66152.0,66151.0,0.1371]
[1722428689994,1.166169,66152.0,66151.0,0.1371]
[1722428690192,0.875835,66152.0,66151.0,0.1371]
[1722428690394,0.259167,66152.0,66151.0,0.1371]
[1722428690625,0.008,66152.0,66151.0,0.28773304]
[1722428690774,0.02,66152.0,66151.0,0.28773304]
[1722428690981,0.008,66152.0,66151.0,0.29263164]
[1722428691175,0.151162,66154.0,66151.0,0.29263164]
[1722428691443,0.151162,66154.0,66153.0,0.1479]
[1722428691642,0.15116,66155.0,66154.0,0.0653]
[1722428691798,0.15116,66155.0,66154.0,0.30023128]
[1722428692002,0.302299,66160.0,66155.0,0.0794]
[1722428692197,0.1,66163.0,66157.0,0.0794]
[1722428692198,0.151153,66158.0,66157.0,0.0794]
[1722428692427,0.251153,66158.0,66157.0,0.23003304]
[1722428692600,0.251153,66158.0,66157.0,0.23493093]
[1722428692810,0.553459,66158.0,66157.0,0.23493093]
[1722428693724,0.1,66158.0,66157.0,0.23493093]
[1722428693918,0.03209447,66172.0,66157.0,0.23493093]
[1722428693919,0.01,66180.0,66159.0,0.0797]
[1722428694116,0.01,66180.0,66162.0,0.0639]
[1722428694117,0.151138,66165.0,66162.0,0.0639]
[1722428694338,0.151139,66164.0,66163.0,0.15063304]
[1722428694675,0.151139,66164.0,66163.0,0.15553021]
[1722428694889,0.151139,66164.0,66163.0,0.23853021]
[1722428695099,0.755697,66164.0,66163.0,0.23853021]
[1722428695304,0.755697,66164.0,66163.0,0.08789717]
[1722428695723,1.057976,66164.0,66163.0,0.08789717]
[1722428696707,1.070976,66164.0,66163.0,0.08789717]
[1722428698373,0.013,66164.0,66163.0,0.30123021]
[1722428698758,0.164139,66164.0,66163.0,0.30123021]
[1722428698958,0.466418,66164.0,66163.0,0.30123021]
[1722428699173,0.164139,66164.0,66163.0,0.30123021]
[1722428699402,0.013,66164.0,66163.0,0.75465421]
[1722428699793,0.013,66164.0,66163.0,0.45237121]
[1722428700013,0.013,66164.0,66163.0,0.30123021]
[1722428700220,0.013,66164.0,66163.0,0.45237121]
[1722428700478,0.013,66164.0,66163.0,0.30123021]
[1722428700680,0.005,66164.0,66163.0,0.30123021]
[1722428700815,0.006,66164.0,66163.0,0.30123021]
[1722428701026,0.006,66164.0,66163.0,0.75465421]
[1722428701253,0.006,66164.0,66163.0,0.45337121]
[1722428701650,0.006,66164.0,66163.0,0.88127767]
[1722428701997,0.006,66164.0,66163.0,1.18256067]
[1722428702370,0.302217,66178.0,66163.0,1.18256067]
[1722428702371,0.302182,66186.0,66175.0,0.0786]
[1722428702574,0.1,66192.0,66178.0,0.0786]
[1722428702772,0.151103,66180.0,66179.0,0.22923304]
[1722428702972,0.251103,66180.0,66179.0,0.23414642]
[1722428703174,0.302194,66183.0,66180.0,0.0786]
[1722428703441,0.1511,66182.0,66181.0,0.29473304]
[1722428703643,0.1511,66182.0,66181.0,0.29964618]
[1722428704294,0.453296,66182.0,66181.0,0.29964618]
[1722428705310,0.455296,66182.0,66181.0,0.29964618]
[1722428705928,0.453296,66182.0,66181.0,0.29964618]
[1722428706286,0.005,66182.0,66181.0,0.29964618]
[1722428706497,0.151087,66187.0,66181.0,0.45074618]
[1722428706695,0.151087,66187.0,66182.0,0.083]
[1722428706696,0.1,66186.0,66182.0,0.083]
[1722428706900,0.151092,66185.0,66183.0,0.15063304]
[1722428707445,0.453275,66185.0,66184.0,0.00491279]
[1722428707665,0.755458,66185.0,66184.0,0.00491279]
[1722428707913,0.75548,66183.0,66182.0,0.37394033]
[1722428708158,0.453288,66183.0,66182.0,0.52457337]
[1722428708836,0.453288,66183.0,66182.0,0.60057337]
[1722428709482,0.75848,66183.0,66182.0,0.60057337]
[1722428710869,0.75548,66183.0,66182.0,0.60057337]
[1722428712473,0.76048,66183.0,66182.0,0.60057337]
[1722428712626,0.75548,66183.0,66182.0,0.60057337]
[1722428713027,0.75848,66183.0,66182.0,0.60057337]
[1722428713204,0.75848,66183.0,66182.0,0.22663304]
[1722428713411,0.75548,66183.0,66182.0,0.22663304]
[1722428713734,0.76048,66183.0,66182.0,0.22663304]
[1722428713938,0.75548,66183.0,66182.0,0.22663304]
[1722428714116,0.75748,66183.0,66182.0,0.22663304]
[1722428714316,0.76048,66183.0,66182.0,0.22663304]
[1722428715327,0.75848,66183.0,66182.0,0.22663304]
[1722428715758,0.75548,66183.0,66182.0,0.22663304]
[1722428716025,0.76048,66183.0,66182.0,0.22663304]
[1722428716235,0.75548,66183.0,66182.0,0.22663304]
[1722428716632,0.75848,66183.0,66182.0,0.22663304]
[1722428716853,0.75548,66183.0,66182.0,0.22663304]
[1722428717276,0.76048,66183.0,66182.0,0.22663304]
[1722428717427,0.75748,66183.0,66182.0,0.22663304]
[1722428717828,0.75548,66183.0,66182.0,0.22663304]
[1722428718902,0.82600223,66183.0,66182.0,0.22663304]
[1722428719100,0.80644957,66183.0,66182.0,0.22663304]
[1722428719441,0.75831,66183.0,66182.0,0.22663304]
[1722428719582,0.76331,66183.0,66182.0,0.22663304]
[1722428720215,0.76131,66183.0,66182.0,0.22663304]
[1722428720448,0.75631,66183.0,66182.0,0.22663304]
[1722428720654,0.75831,66183.0,66182.0,0.22663304]
[1722428720864,0.76331,66183.0,66182.0,0.22663304]
[1722428721452,1.065502,66183.0,66182.0,0.15063304]
[1722428721660,1.19782231,66183.0,66182.0,0.15063304]
[1722428721990,1.21839574,66183.0,66182.0,0.15063304]
[1722428722346,1.21539574,66183.0,66182.0,0.15063304]
[1722428722542,1.057686,66182.0,66181.0,0.00018189]
[1722428722745,1.057686,66182.0,66181.0,0.37412222]
[1722428722946,1.82817632,66182.0,66181.0,0.37412222]
[1722428723348,1.756282,66182.0,66181.0,0.37412222]
[1722428723575,1.76569883,66182.0,66181.0,0.37412222]
[1722428723774,1.90113051,66182.0,66181.0,0.37412222]
[1722428723984,1.76569883,66182.0,66181.0,0.37412222]
[1722428724189,1.76669883,66182.0,66181.0,0.37412222]
[1722428724414,2.29248915,66182.0,66181.0,0.37412222]
[1722428724619,2.29248915,66182.0,66181.0,0.00018189]
[1722428724620,1.98929315,66182.0,66181.0,0.00018189]
[1722428724737,1.83859883,66182.0,66181.0,0.00018189]
[1722428724938,1.84659883,66182.0,66181.0,0.00018189]
[1722428725489,1.83859883,66182.0,66181.0,0.00018189]
[1722428726130,1.83859794,66182.0,66181.0,0.00018189]
[1722428726334,2.00195858,66182.0,66181.0,0.00018189]
[1722428726536,2.18379394,66182.0,66181.0,0.00018189]
[1722428726742,2.63668426,66182.0,66181.0,0.00018189]
[1722428726947,2.83727037,66182.0,66181.0,0.00018189]
[1722428727159,2.66462298,66182.0,66181.0,0.00018189]
[1722428727387,2.37016807,66182.0,66181.0,0.00018189]
[1722428728120,2.38416807,66182.0,66181.0,0.00018189]
[1722428728318,2.39301995,66182.0,66181.0,0.00018189]
[1722428728522,2.54371427,66182.0,66181.0,0.00018189]
[1722428729228,2.51255724,66182.0,66181.0,0.00018189]
[1722428729437,2.5303055,66182.0,66181.0,0.00018189]
[1722428729610,2.5443055,66182.0,66181.0,0.00018189]
[1722428729816,2.5303055,66182.0,66181.0,0.00018189]
[1722428730152,2.5443055,66182.0,66181.0,0.00018189]
[1722428730733,2.5303055,66182.0,66181.0,0.00018189]
[1722428731020,2.5443055,66182.0,66181.0,0.00018189]
[1722428731201,2.5303055,66182.0,66181.0,0.00018189]
[1722428731401,2.9917015,66182.0,66181.0,0.00018189]
[1722428731600,2.91172187,66182.0,66181.0,0.00018189]
[1722428731813,2.6895055,66182.0,66181.0,0.00018189]
[1722428732383,2.65775724,66182.0,66181.0,0.00018189]
[1722428732774,2.5527948,66182.0,66181.0,0.00018189]
[1722428733512,2.77506705,66182.0,66181.0,0.00018189]
[1722428733714,2.5527948,66182.0,66181.0,0.00018189]
[1722428735365,2.77506705,66182.0,66181.0,0.00018189]
[1722428735611,2.27135575,66182.0,66181.0,0.00018189]
[1722428735755,1.86545162,66182.0,66181.0,0.00018189]
[1722428735960,1.87935162,66182.0,66181.0,0.00018189]
[1722428736164,1.89935162,66182.0,66181.0,0.00018189]
[1722428736986,1.87935162,66182.0,66181.0,0.00018189]
[1722428737233,1.90235162,66182.0,66181.0,0.00018189]
[1722428738316,1.74675162,66182.0,66181.0,0.00018189]
[1722428738534,1.52915162,66182.0,66181.0,0.00018189]
[1722428738950,1.50615309,66182.0,66181.0,0.00018189]
[1722428740158,1.51615309,66182.0,66181.0,0.00018189]
[1722428740361,1.71975309,66182.0,66181.0,0.00018189]
[1722428741004,1.70975309,66182.0,66181.0,0.00018189]
[1722428741254,1.71975309,66182.0,66181.0,0.00018189]
[1722428741435,1.72375309,66182.0,66181.0,0.00018189]
[1722428742196,1.50615294,66182.0,66181.0,0.00018189]
[1722428742393,1.18110506,66182.0,66181.0,0.00018189]
[1722428742803,0.86949,66182.0,66181.0,0.07868189]
[1722428743003,1.00518041,66182.0,66181.0,0.07868189]
[1722428743202,0.88349,66182.0,66181.0,0.14018189]
[1722428743630,1.01918041,66182.0,66181.0,0.14018189]
[1722428743863,0.88349,66182.0,66181.0,0.14018189]
[1722428744205,0.86949,66182.0,66181.0,0.14018189]
[1722428744589,1.01818565,66182.0,66181.0,0.14018189]
[1722428744719,0.88249,66182.0,66181.0,0.14018189]
[1722428745148,0.88249,66182.0,66181.0,0.14]
[1722428745446,0.566294,66182.0,66181.0,0.29063304]
[1722428745846,0.553294,66182.0,66181.0,0.29552079]
[1722428746251,0.560294,66182.0,66181.0,0.29552079]
[1722428746423,0.86249,66182.0,66181.0,0.29552079]
[1722428746659,0.99818134,66182.0,66181.0,0.29552079]
[1722428746865,0.86949,66182.0,66181.0,0.29063304]
[1722428747065,0.99118134,66182.0,66181.0,0.29063304]
[1722428747213,0.99618134,66182.0,66181.0,0.29552079]
[1722428747415,0.558294,66182.0,66181.0,0.29552079]
[1722428747630,0.86349,66182.0,66181.0,0.29552079]
[1722428747839,0.85549,66182.0,66181.0,0.29552079]
[1722428747997,0.553294,66182.0,66181.0,0.29552079]
[1722428748200,0.86549,66182.0,66181.0,0.29063304]
[1722428748443,0.85549,66182.0,66181.0,0.29063304]
[1722428748649,0.85549,66182.0,66181.0,0.29552079]
[1722428748877,0.553294,66182.0,66181.0,0.29552079]
[1722428749370,0.553294,66182.0,66181.0,0.29063304]
[1722428749843,0.553294,66182.0,66181.0,0.29552079]
[1722428749844,0.86349,66182.0,66181.0,0.29552079]
[1722428750072,0.561294,66182.0,66181.0,0.29552079]
[1722428750633,0.553294,66182.0,66181.0,0.29552079]
[1722428750857,0.560294,66182.0,66181.0,0.29552079]
[1722428751062,0.568294,66182.0,66181.0,0.29552079]
[1722428751296,0.568294,66182.0,66181.0,0.29063304]
[1722428751472,0.553294,66182.0,66181.0,0.29063304]
[1722428751682,0.564294,66182.0,66181.0,0.29552079]
[1722428752027,0.86649,66182.0,66181.0,0.29552079]
[1722428752962,0.85949,66182.0,66181.0,0.29552079]
[1722428753332,0.86649,66182.0,66181.0,0.29552079]
[1722428754388,0.85549,66182.0,66181.0,0.29552079]
[1722428754592,1.168686,66182.0,66181.0,0.08338775]
[1722428754958,1.168686,66182.0,66181.0,0.0785]
[1722428755165,1.30439807,66182.0,66181.0,0.07868189]
[1722428755385,1.168686,66182.0,66181.0,0.07868189]
[1722428755797,1.164686,66182.0,66181.0,0.07868189]
[1722428756360,1.168686,66182.0,66181.0,0.07868189]
[1722428758414,0.86649,66182.0,66181.0,0.07868189]
[1722428758827,1.168686,66182.0,66181.0,0.07868189]
[1722428761217,0.86649,66182.0,66181.0,0.22931493]
[1722428761433,1.00224276,66182.0,66181.0,0.22931493]
[1722428761574,1.00224054,66182.0,66181.0,0.22931493]
[1722428761780,0.86649,66182.0,66181.0,0.22931493]
[1722428762428,1.00224529,66182.0,66181.0,0.22931493]
[1722428764104,1.00224529,66182.0,66181.0,0.07868189]
[1722428764308,1.168686,66182.0,66181.0,0.07868189]
[1722428764514,1.168686,66182.0,66181.0,0.00018189]
[1722428766718,1.32140535,66182.0,66181.0,0.00018189]
[1722428766927,1.32144985,66182.0,66181.0,0.00018189]
[1722428768242,1.32145861,66182.0,66181.0,0.00018189]
[1722428769329,1.22145861,66182.0,66181.0,0.00018189]
[1722428771551,1.22146492,66182.0,66181.0,0.00018189]
[1722428771719,1.068686,66182.0,66181.0,0.00018189]
[1722428771947,1.286286,66182.0,66181.0,0.00018189]
[1722428772154,1.588482,66182.0,66181.0,0.00018189]
[1722428772339,1.688482,66182.0,66181.0,0.00018189]
[1722428773334,1.386286,66182.0,66181.0,0.00018189]
[1722428773513,1.168686,66182.0,66181.0,0.00018189]
[1722428774307,1.470882,66182.0,66181.0,0.00018189]
[1722428775125,1.168686,66182.0,66181.0,0.00018189]
[1722428776231,1.470882,66182.0,66181.0,0.00018189]
[1722428777310,1.168686,66182.0,66181.0,0.08038189]
[1722428778104,0.61716472,66182.0,66181.0,0.29481493]
[1722428778447,0.464294,66182.0,66181.0,0.29968649]
[1722428778855,0.76649,66182.0,66181.0,0.29968649]
[1722428779024,0.90238037,66182.0,66181.0,0.29968649]
[1722428779281,0.76649,66182.0,66181.0,0.29481493]
[1722428779704,0.76649,66182.0,66181.0,0.29968229]
[1722428782966,0.9194478,66182.0,66181.0,0.29968229]
[1722428783129,0.76649,66182.0,66181.0,0.29968229]
[1722428783332,0.76649,66182.0,66181.0,0.29481493]
[1722428783550,0.9194478,66182.0,66181.0,0.29967404]
[1722428784580,1.068686,66182.0,66181.0,0.23101493]
[1722428784779,1.068686,66182.0,66181.0,0.23587404]
[1722428785224,1.068686,66182.0,66181.0,0.15567404]
[1722428785817,1.068686,66182.0,66181.0,0.005041]
[1722428786238,1.068686,66182.0,66181.0,0.00018189]
[1722428790571,0.755582,66174.0,66173.0,0.0825]
[1722428790748,0.755582,66174.0,66173.0,0.61193568]
[1722428791359,0.755582,66174.0,66173.0,0.23799535]
[1722428791683,0.755582,66174.0,66173.0,0.23999535]
[1722428791878,0.756582,66174.0,66173.0,0.24399535]
[1722428796858,1.058815,66174.0,66173.0,0.24399535]